bitfinex-derivatives/quotes_BTCF0:USTF0_20250129
["timestamp","ask_amount","ask_price","bid_price","bid_amount"]
[1738129835909,0.14685901,102190.0,102180.0,0.83031982]
[1738129836106,0.21215901,102190.0,102180.0,0.83031982]
[1738129836497,0.18156668,102190.0,102180.0,0.81511885]
[1738129837499,0.18156668,102190.0,102180.0,0.83037079]
[1738129837902,0.0653,102190.0,102180.0,0.83037079]
[1738129838409,0.0673,102190.0,102180.0,0.83037079]
[1738129838610,0.0673,102190.0,102180.0,0.81511885]
[1738129842210,0.0673,102190.0,102180.0,0.73619885]
[1738129842419,0.0673,102190.0,102180.0,0.81511885]
[1738129845918,0.0673,102190.0,102180.0,0.73619885]
[1738129846109,0.0673,102190.0,102180.0,0.81511885]
[1738129852718,0.0673,102190.0,102180.0,0.45431885]
[1738129853020,0.0673,102190.0,102180.0,0.81511885]
[1738129853414,0.0673,102190.0,102180.0,0.45431885]
[1738129853712,0.0673,102190.0,102180.0,0.81511885]
[1738129859519,0.035,102190.0,102180.0,0.81511885]
[1738129861023,0.035,102190.0,102180.0,0.45431885]
[1738129861319,0.035,102190.0,102180.0,0.81511885]
[1738129862123,0.035,102190.0,102180.0,0.45431885]
[1738129862420,0.035,102190.0,102180.0,0.81511885]
[1738129863023,0.21097152,102190.0,102180.0,0.81511885]
[1738129867929,0.35773265,102190.0,102180.0,0.81511885]
[1738129868733,0.55351365,102190.0,102180.0,0.63969513]
[1738129869020,0.60176551,102190.0,102180.0,0.63969513]
[1738129869231,0.58601365,102190.0,102180.0,0.68794699]
[1738129870033,0.63426551,102190.0,102180.0,0.68794699]
[1738129870225,0.48750438,102190.0,102180.0,0.68794699]
[1738129871031,0.43925252,102190.0,102180.0,0.68794699]
[1738129871732,0.43925252,102190.0,102180.0,0.64510084]
[1738129874526,0.40675252,102190.0,102180.0,0.6933527]
[1738129874832,0.17797152,102190.0,102180.0,0.6933527]
[1738129877626,0.17797152,102190.0,102180.0,0.73540571]
[1738129879235,0.14866918,102190.0,102180.0,0.73540571]
[1738129880232,0.14866918,102190.0,102180.0,0.6933527]
[1738129881335,0.14866918,102190.0,102180.0,0.73540571]
[1738129882025,0.26600708,102190.0,102180.0,0.73540571]
[1738129882527,0.26600708,102190.0,102180.0,0.83941934]
[1738129885337,0.1193379,102190.0,102180.0,0.83941934]
[1738129885738,0.1193379,102190.0,102180.0,0.47861934]
[1738129885938,0.1193379,102190.0,102180.0,1.20021934]
[1738129888440,0.1193379,102190.0,102180.0,1.09620571]
[1738129889633,0.1193379,102190.0,102180.0,0.37460571]
[1738129889834,0.1193379,102190.0,102180.0,1.09620571]
[1738129890442,0.1193379,102190.0,102180.0,1.0541527]
[1738129891138,0.1193379,102190.0,102180.0,0.3325527]
[1738129891344,0.1193379,102190.0,102180.0,1.0541527]
[1738129895238,0.1193379,102190.0,102180.0,1.0688327]
[1738129895640,0.1193379,102190.0,102180.0,1.0541527]
[1738129896235,0.1193379,102190.0,102180.0,1.0688327]
[1738129897137,0.1193379,102190.0,102180.0,1.0541527]
[1738129897340,0.1193379,102190.0,102180.0,1.0688327]
[1738129897543,0.1193379,102190.0,102180.0,1.09620571]
[1738129897944,0.1193379,102190.0,102180.0,1.11088571]
[1738129898141,0.1193379,102190.0,102180.0,1.09620571]
[1738129899054,0.1193379,102190.0,102180.0,1.11088571]
[1738129900043,0.1193379,102190.0,102180.0,1.09620571]
[1738129900541,0.1193379,102190.0,102180.0,1.11088571]
[1738129900746,0.1193379,102190.0,102180.0,1.09620571]
[1738129901056,0.1193379,102190.0,102180.0,1.11088571]
[1738129901256,0.1193379,102190.0,102180.0,1.09620571]
[1738129902351,0.1193379,102190.0,102180.0,1.11088571]
[1738129902551,0.1193379,102190.0,102180.0,1.09620571]
[1738129902948,0.1193379,102190.0,102180.0,1.11088571]
[1738129903145,0.1193379,102190.0,102180.0,1.22102748]
[1738129906061,0.1193379,102190.0,102180.0,0.49942748]
[1738129906261,0.1193379,102190.0,102180.0,1.22102748]
[1738129907748,0.26600708,102190.0,102180.0,1.22102748]
[1738129914457,0.26600708,102190.0,102180.0,1.20634748]
[1738129914858,0.26600708,102190.0,102180.0,1.22102748]
[1738129921464,0.26600708,102190.0,102180.0,1.15809562]
[1738129921770,0.29750708,102190.0,102180.0,1.04795385]
[1738129922369,0.29750708,102190.0,102180.0,1.09620571]
[1738129924161,0.29750708,102190.0,102180.0,1.0541527]
[1738129926171,0.29750708,102190.0,102180.0,0.3325527]
[1738129926372,0.29750708,102190.0,102180.0,1.0541527]
[1738129930576,0.26600708,102190.0,102180.0,1.15742698]
[1738129931066,0.26600708,102190.0,102180.0,1.19801073]
[1738129934667,0.26600708,102190.0,102180.0,1.21269073]
[1738129935371,0.17611837,102200.0,102190.0,0.556581]
[1738129935673,0.24490459,102220.0,102210.0,0.195743]
[1738129935975,0.88322667,102230.0,102220.0,0.195724]
[1738129936171,0.88322667,102230.0,102220.0,0.7561767]
[1738129936377,0.88322667,102230.0,102220.0,1.44475402]
[1738129936571,0.88322667,102230.0,102220.0,1.49300588]
[1738129937176,0.88322667,102230.0,102220.0,1.52479402]
[1738129937567,0.88322667,102230.0,102220.0,1.57304588]
[1738129937971,0.88522667,102230.0,102220.0,1.57304588]
[1738129938170,0.88522667,102230.0,102220.0,1.52479402]
[1738129940668,0.88522667,102230.0,102220.0,1.81733265]
[1738129940669,0.002,102230.0,102220.0,1.81733265]
[1738129941568,0.002,102230.0,102220.0,1.82696166]
[1738129942680,0.002,102230.0,102220.0,1.70667268]
[1738129942880,0.002,102230.0,102220.0,1.78643268]
[1738129943079,0.002,102230.0,102220.0,1.53280962]
[1738129943285,0.002,102230.0,102220.0,1.5723835]
[1738129943472,0.0325,102230.0,102220.0,1.5723835]
[1738129943870,0.0325,102230.0,102220.0,1.32809673]
[1738129944586,0.0325,102230.0,102220.0,1.30510449]
[1738129945384,0.0325,102230.0,102220.0,1.22534449]
[1738129945577,0.0325,102230.0,102220.0,1.30510449]
[1738129946187,0.0325,102230.0,102220.0,1.22534449]
[1738129946387,0.0325,102230.0,102220.0,1.30514449]
[1738129947484,0.0325,102230.0,102220.0,1.22534449]
[1738129947682,0.0325,102230.0,102220.0,1.30506449]
[1738129948172,0.0325,102230.0,102220.0,0.94426449]
[1738129948573,0.0325,102230.0,102220.0,1.66586449]
[1738129949780,0.0325,102230.0,102220.0,1.58614449]
[1738129949982,0.0325,102230.0,102220.0,1.66574449]
[1738129961199,0.0325,102230.0,102220.0,1.59223301]
[1738129963296,0.0325,102230.0,102220.0,1.66574449]
[1738129964488,0.0325,102230.0,102220.0,1.64047478]
[1738129965798,0.0325,102230.0,102220.0,1.68072241]
[1738129967206,0.002,102230.0,102220.0,1.97326104]
[1738129968211,0.002,102230.0,102220.0,2.05460281]
[1738129968412,0.002,102230.0,102220.0,2.08680281]
[1738129970115,0.002,102230.0,102220.0,2.41614866]
[1738129972513,0.002,102230.0,102220.0,1.83046866]
[1738129973314,0.002,102230.0,102220.0,1.87074614]
[1738129974710,0.002,102230.0,102220.0,1.98815755]
[1738129980614,0.002,102230.0,102220.0,1.59683371]
[1738129981424,0.08764996,102240.0,102230.0,0.195704]
[1738129981612,0.08764996,102240.0,102230.0,0.6749934]
[1738129981819,0.08764996,102240.0,102230.0,0.78547524]
[1738129982614,0.09264996,102240.0,102230.0,0.78547524]
[1738129983525,0.09264996,102240.0,102230.0,1.07876069]
[1738129986316,0.00514685,102240.0,102230.0,1.12748069]
[1738129986516,0.03754685,102240.0,102230.0,1.12748069]
[1738129988127,0.03754685,102240.0,102230.0,1.48828069]
[1738129988322,0.03754685,102240.0,102230.0,1.40956069]
[1738129988519,0.03754685,102240.0,102230.0,1.48828069]
[1738129990226,0.03754685,102240.0,102230.0,1.52855817]
[1738129991723,0.03754685,102240.0,102230.0,1.8803894]
[1738129994322,0.03754685,102240.0,102230.0,1.76990756]
[1738129995024,0.03754685,102240.0,102230.0,1.64294579]
[1738129995230,0.26443185,102240.0,102230.0,1.68138831]
[1738129996133,0.06874685,102240.0,102230.0,1.72963008]
[1738129997232,0.00514685,102240.0,102230.0,1.72963008]
[1738129997433,0.00514685,102240.0,102230.0,1.77056981]
[1738129998825,0.09264996,102240.0,102230.0,1.41873858]
[1738130001933,0.09264996,102240.0,102230.0,1.74812248]
[1738130003432,0.09264996,102240.0,102230.0,1.78132248]
[1738130004031,0.09264996,102240.0,102230.0,1.74038275]
[1738130004228,0.09264996,102240.0,102230.0,1.78133327]
[1738130004430,0.09264996,102240.0,102230.0,1.74038275]
[1738130009030,0.09264996,102240.0,102230.0,1.46954463]
[1738130013844,0.09264996,102240.0,102230.0,1.51049534]
[1738130016641,0.09264996,102240.0,102230.0,1.46954463]
[1738130017040,0.09264996,102240.0,102230.0,1.74038275]
[1738130017737,0.09264996,102240.0,102230.0,1.91269576]
[1738130017942,0.09264996,102240.0,102230.0,1.95364647]
[1738130018536,0.08964996,102240.0,102230.0,1.95364647]
[1738130022051,0.00214685,102240.0,102230.0,1.60181524]
[1738130022438,0.00214685,102240.0,102230.0,1.55357347]
[1738130026451,0.00214685,102240.0,102230.0,1.28273535]
[1738130027654,0.00214685,102240.0,102230.0,1.24178464]
[1738130027953,0.00214685,102240.0,102230.0,1.29002641]
[1738130029551,0.00214685,102240.0,102230.0,1.24178464]
[1738130029752,0.00214685,102240.0,102230.0,1.28273535]
[1738130030149,0.00214685,102240.0,102230.0,1.24178464]
[1738130030349,0.00214685,102240.0,102230.0,1.59342953]
[1738130034351,0.00214685,102240.0,102230.0,1.24178464]
[1738130034554,0.00214685,102240.0,102230.0,1.22710464]
[1738130034754,0.00214685,102240.0,102230.0,1.24178464]
[1738130043372,0.00214685,102240.0,102230.0,1.28273535]
[1738130043575,0.00214685,102240.0,102230.0,1.17081535]
[1738130043771,0.00214685,102240.0,102230.0,1.24953535]
[1738130044281,0.03374685,102240.0,102230.0,1.24953535]
[1738130044779,0.03374685,102240.0,102230.0,1.23485535]
[1738130045084,0.03374685,102240.0,102230.0,1.12546411]
[1738130048080,0.03374685,102240.0,102230.0,1.2348891]
[1738130048281,0.03374685,102240.0,102230.0,1.12546411]
[1738130050281,0.03374685,102240.0,102230.0,0.40386411]
[1738130050482,0.03374685,102240.0,102230.0,1.12546411]
[1738130051777,0.03374685,102240.0,102230.0,1.0845134]
[1738130053888,0.03374685,102240.0,102230.0,1.43654551]
[1738130056192,0.03374685,102240.0,102230.0,1.47749622]
[1738130057485,0.03374685,102240.0,102230.0,1.43654551]
[1738130057881,0.03374685,102240.0,102230.0,1.47749622]
[1738130060485,0.00214685,102240.0,102230.0,1.47749622]
[1738130060884,0.00214685,102240.0,102230.0,1.51079622]
[1738130062885,0.00214685,102240.0,102230.0,1.46984551]
[1738130065300,0.00214685,102240.0,102230.0,0.74824551]
[1738130065499,0.00214685,102240.0,102230.0,1.46984551]
[1738130070108,0.00214685,102240.0,102230.0,1.51079622]
[1738130072007,0.00214685,102240.0,102230.0,1.47749622]
[1738130073603,0.00214685,102240.0,102230.0,1.12546411]
[1738130076605,0.00214685,102240.0,102230.0,1.04674411]
[1738130076815,0.03234685,102240.0,102230.0,1.12542411]
[1738130080914,0.03234685,102240.0,102230.0,1.47756108]
[1738130082916,0.03234685,102240.0,102230.0,1.43661037]
[1738130085908,0.03234685,102240.0,102230.0,1.34547487]
[1738130089627,0.03234685,102240.0,102230.0,1.0844734]
[1738130092716,0.03234685,102240.0,102230.0,1.43661007]
[1738130092924,0.03234685,102240.0,102230.0,1.47756078]
[1738130093915,0.03234685,102240.0,102230.0,1.39888078]
[1738130094114,0.03234685,102240.0,102230.0,1.47756078]
[1738130096010,0.03234685,102240.0,102230.0,1.73856225]
[1738130101527,0.03234685,102240.0,102230.0,1.01696225]
[1738130101729,0.03234685,102240.0,102230.0,1.73856225]
[1738130102635,0.00214685,102240.0,102230.0,1.73856225]
[1738130102822,0.00214685,102240.0,102230.0,1.77166225]
[1738130103218,0.00214685,102240.0,102230.0,1.38642558]
[1738130110935,0.00214685,102240.0,102230.0,1.46451982]
[1738130111738,0.00214685,102240.0,102230.0,1.38642558]
[1738130117433,0.00214685,102240.0,102230.0,1.34547487]
[1738130118848,0.00214685,102240.0,102230.0,1.38642558]
[1738130119346,0.00214685,102240.0,102230.0,1.34547487]
[1738130121349,0.00214685,102240.0,102230.0,1.69758764]
[1738130122947,0.00214685,102240.0,102230.0,0.97598764]
[1738130123150,0.00214685,102240.0,102230.0,1.69758764]
[1738130124751,0.00214685,102240.0,102230.0,1.47753688]
[1738130125456,0.00214685,102240.0,102230.0,0.75593688]
[1738130125650,0.00214685,102240.0,102230.0,1.47753688]
[1738130128853,0.00214685,102240.0,102230.0,1.12542411]
[1738130129058,0.00214685,102240.0,102230.0,1.28036877]
[1738130129945,0.00214685,102240.0,102230.0,1.45627687]
[1738130130653,0.00014685,102240.0,102230.0,1.45627687]
[1738130130855,0.00014685,102240.0,102230.0,1.45827687]
[1738130131657,0.00014685,102240.0,102230.0,1.38018263]
[1738130132854,0.08750311,102260.0,102250.0,0.195666]
[1738130133161,0.08750311,102260.0,102250.0,0.79091788]
[1738130133352,0.08750311,102260.0,102250.0,0.89969166]
[1738130133661,0.17522864,102280.0,102270.0,0.195628]
[1738130133954,0.17522864,102280.0,102270.0,1.26870977]
[1738130134258,0.17522864,102280.0,102270.0,1.41571316]
[1738130134557,0.17522864,102280.0,102270.0,1.43039316]
[1738130135067,0.17522864,102280.0,102270.0,1.47863493]
[1738130135951,0.00014685,102290.0,102280.0,0.195609]
[1738130136151,0.00014685,102290.0,102280.0,0.72444017]
[1738130137160,0.00814685,102290.0,102280.0,0.72544017]
[1738130138956,0.00814685,102290.0,102280.0,0.68519254]
[1738130139466,0.05638862,102290.0,102280.0,0.41004177]
[1738130139669,0.34587862,102290.0,102280.0,0.3618]
[1738130145062,0.34587862,102290.0,102280.0,0.557409]
[1738130145658,0.35577579,102290.0,102280.0,0.557409]
[1738130145864,0.34587862,102290.0,102280.0,0.60565077]
[1738130146269,0.34587862,102290.0,102280.0,0.557409]
[1738130147770,0.29763685,102290.0,102280.0,0.60565077]
[1738130148066,0.10204685,102290.0,102280.0,0.60565077]
[1738130152465,0.10204685,102290.0,102280.0,0.557409]
[1738130152665,0.10204685,102290.0,102280.0,0.60565077]
[1738130157876,0.10204685,102290.0,102280.0,0.96645077]
[1738130158174,0.10204685,102290.0,102280.0,0.918209]
[1738130158673,0.10204685,102290.0,102280.0,0.96645077]
[1738130159375,0.10204685,102290.0,102280.0,0.918209]
[1738130159573,0.29763685,102290.0,102280.0,0.96645077]
[1738130159778,0.29763685,102290.0,102280.0,0.918209]
[1738130161265,0.29763685,102290.0,102280.0,0.96645077]
[1738130161670,0.29763685,102290.0,102280.0,0.918209]
[1738130163070,0.34587862,102290.0,102280.0,0.7226]
[1738130163772,0.34587862,102290.0,102280.0,0.6226]
[1738130164174,0.35565878,102290.0,102280.0,0.6226]
[1738130166179,0.35565878,102290.0,102280.0,0.818209]
[1738130166381,0.30741701,102290.0,102280.0,0.86645077]
[1738130166564,0.27681701,102290.0,102280.0,0.86645077]
[1738130166770,0.23613685,102290.0,102280.0,0.89645077]
[1738130167880,0.23613685,102290.0,102280.0,0.848209]
[1738130168671,0.20373685,102290.0,102280.0,0.89645077]
[1738130169380,0.20373685,102290.0,102280.0,0.848209]
[1738130170185,0.20373685,102290.0,102280.0,0.89645077]
[1738130170683,0.20373685,102290.0,102280.0,0.93692522]
[1738130172982,0.20373685,102290.0,102280.0,1.18050607]
[1738130175888,0.20373685,102290.0,102280.0,1.22874784]
[1738130176778,0.20373685,102290.0,102280.0,0.93692522]
[1738130179276,0.20373685,102290.0,102280.0,1.22874784]
[1738130181581,0.20373685,102290.0,102280.0,1.18050607]
[1738130190293,0.20373685,102290.0,102280.0,0.88868345]
[1738130194689,0.20373685,102290.0,102280.0,0.93692522]
[1738130196793,0.32092612,102290.0,102280.0,1.22874784]
[1738130197298,0.32092612,102290.0,102280.0,1.18050607]
[1738130198798,0.32092612,102290.0,102280.0,1.22874784]
[1738130198996,0.32092612,102290.0,102280.0,1.18050607]
[1738130199600,0.32092612,102290.0,102280.0,1.22874784]
[1738130200204,0.32092612,102290.0,102280.0,1.18050607]
[1738130201385,0.32092612,102290.0,102280.0,1.22874784]
[1738130202300,0.12533612,102290.0,102280.0,1.22874784]
[1738130203201,0.12533612,102290.0,102280.0,1.18050607]
[1738130203408,0.15673612,102290.0,102280.0,1.18050607]
[1738130211113,0.3028903,102290.0,102280.0,1.18050607]
[1738130215011,0.15673612,102290.0,102280.0,1.41518075]
[1738130215404,0.12533612,102290.0,102280.0,1.51166429]
[1738130215614,0.12533612,102290.0,102280.0,1.55417538]
[1738130216700,0.12533612,102290.0,102280.0,1.51166429]
[1738130216907,0.12533612,102290.0,102280.0,1.46342252]
[1738130217313,0.12233612,102290.0,102280.0,1.46342252]
[1738130218510,0.00514685,102290.0,102280.0,1.57893498]
[1738130220919,0.00514685,102290.0,102280.0,1.62717675]
[1738130221109,0.00514685,102290.0,102280.0,1.66811263]
[1738130221310,0.00514685,102290.0,102280.0,1.62717675]
[1738130222518,0.00514685,102290.0,102280.0,1.27698961]
[1738130222721,0.00514685,102290.0,102280.0,1.22874784]
[1738130222914,0.00514685,102290.0,102280.0,1.18050607]
[1738130223120,0.20073685,102290.0,102280.0,1.22874784]
[1738130226420,0.24897862,102290.0,102280.0,0.36229707]
[1738130227018,0.60977862,102290.0,102280.0,0.36229707]
[1738130227319,0.24897862,102290.0,102280.0,0.36229707]
[1738130227719,0.20073685,102290.0,102280.0,0.36229707]
[1738130228518,0.21038729,102290.0,102280.0,0.36229707]
[1738130230228,0.21038729,102290.0,102280.0,0.07047445]
[1738130230229,0.32757656,102290.0,102280.0,0.07047445]
[1738130230422,0.32757656,102290.0,102280.0,0.11871622]
[1738130231519,0.32757656,102290.0,102280.0,0.07047445]
[1738130232026,0.32757656,102290.0,102280.0,0.11871622]
[1738130233327,0.32757656,102290.0,102280.0,0.07047445]
[1738130243532,0.37581833,102290.0,102280.0,0.04047445]
[1738130243733,0.18022833,102290.0,102270.0,0.87954762]
[1738130243930,0.68389254,102280.0,102270.0,0.33231856]
[1738130244135,0.195628,102270.0,102260.0,0.62251195]
[1738130244335,0.60466977,102270.0,102260.0,0.62251195]
[1738130244942,0.60466977,102270.0,102260.0,0.27232481]
[1738130246640,0.60466977,102270.0,102260.0,0.27332481]
[1738130249248,0.86801322,102270.0,102260.0,0.00114685]
[1738130249543,0.86801322,102270.0,102250.0,0.97876677]
[1738130249544,0.67238522,102270.0,102250.0,0.94746677]
[1738130249737,0.27438877,102260.0,102250.0,0.94746677]
[1738130249937,0.27438877,102260.0,102250.0,0.36226677]
[1738130250745,0.27438877,102260.0,102250.0,0.36626677]
[1738130252443,0.27438877,102260.0,102250.0,0.00546677]
[1738130256144,0.32263054,102260.0,102250.0,0.00546677]
[1738130257340,0.35433054,102260.0,102250.0,0.00546677]
[1738130260854,0.30608877,102260.0,102250.0,0.00546677]
[1738130261951,0.35433054,102260.0,102250.0,0.00546677]
[1738130262148,0.71513054,102260.0,102250.0,0.00546677]
[1738130262351,0.74613054,102260.0,102250.0,0.00546677]
[1738130262861,0.195666,102250.0,102240.0,0.03314685]
[1738130263053,0.60470777,102250.0,102240.0,0.03314685]
[1738130264258,0.60570777,102250.0,102240.0,0.00714685]
[1738130265360,0.69326015,102250.0,102240.0,0.00714685]
[1738130266762,0.74150192,102250.0,102240.0,0.00714685]
[1738130269667,0.91729299,102250.0,102240.0,0.00714685]
[1738130269868,0.91629299,102250.0,102240.0,0.00014685]
[1738130270166,0.92587713,102250.0,102240.0,0.00414685]
[1738130275064,0.87763536,102250.0,102240.0,0.00414685]
[1738130282375,0.87763536,102250.0,102240.0,0.03724685]
[1738130283676,0.87763536,102250.0,102240.0,0.07024685]
[1738130285769,0.46859359,102250.0,102240.0,0.67497362]
[1738130285982,0.50725122,102250.0,102240.0,0.62673185]
[1738130286676,0.44874523,102250.0,102240.0,0.62673185]
[1738130287667,0.20483746,102250.0,102240.0,0.67497362]
[1738130288380,0.20483746,102250.0,102240.0,0.72321539]
[1738130288877,0.20483746,102250.0,102240.0,0.71502749]
[1738130289063,0.20483746,102250.0,102240.0,0.72505664]
[1738130290479,0.20483746,102250.0,102240.0,0.71502749]
[1738130290877,0.44872923,102260.0,102240.0,0.71502749]
[1738130291074,0.44872923,102260.0,102250.0,0.3608]
[1738130292671,0.44872923,102260.0,102250.0,0.3618]
[1738130293579,0.44872923,102260.0,102250.0,0.557466]
[1738130294475,0.33153996,102260.0,102250.0,0.557466]
[1738130299983,0.28329819,102260.0,102250.0,0.557466]
[1738130300277,0.28329819,102260.0,102250.0,0.63630777]
[1738130302983,0.28329819,102260.0,102250.0,0.64607503]
[1738130311491,0.40048746,102260.0,102250.0,0.64607503]
[1738130312896,0.40048746,102260.0,102250.0,0.63630777]
[1738130313200,0.44872923,102260.0,102250.0,0.557466]
[1738130313399,0.47902923,102260.0,102250.0,0.557466]
[1738130315397,0.43078746,102260.0,102250.0,0.60570777]
[1738130315696,0.47902923,102260.0,102250.0,0.60570777]
[1738130318195,0.53753522,102260.0,102250.0,0.60570777]
[1738130319198,0.53753522,102260.0,102250.0,0.64584649]
[1738130321301,0.53753522,102260.0,102250.0,0.59760472]
[1738130321493,0.53753522,102260.0,102250.0,0.64584649]
[1738130321893,0.53753522,102260.0,102250.0,0.59760472]
[1738130332508,0.53753522,102260.0,102250.0,0.23680472]
[1738130332705,0.53753522,102260.0,102250.0,0.59760472]
[1738130334706,0.53753522,102260.0,102250.0,0.23680472]
[1738130334907,0.53753522,102260.0,102250.0,0.59760472]
[1738130338810,0.48929345,102260.0,102250.0,0.59760472]
[1738130341617,0.48929345,102260.0,102250.0,0.23680472]
[1738130341817,0.48929345,102260.0,102250.0,0.59760472]
[1738130342417,0.48929345,102260.0,102250.0,0.23680472]
[1738130342618,0.48929345,102260.0,102250.0,0.59760472]
[1738130347323,0.48929345,102260.0,102250.0,0.64584649]
[1738130358326,0.45899345,102260.0,102250.0,0.64584649]
[1738130369241,0.31283927,102260.0,102250.0,0.64584649]
[1738130375147,0.45899345,102260.0,102250.0,0.64584649]
[1738130378748,0.26334345,102260.0,102250.0,0.64584649]
[1738130381941,1e-08,102260.0,102250.0,1.1822768]
[1738130382240,1e-08,102260.0,102250.0,0.9152768]
[1738130382447,1e-08,102260.0,102250.0,0.67884649]
[1738130382647,1e-08,102260.0,102250.0,0.75768649]
[1738130383053,1e-08,102260.0,102250.0,0.80592826]
[1738130383760,0.08801721,102260.0,102250.0,0.80592826]
[1738130383954,0.08801721,102260.0,102250.0,0.75768649]
[1738130386555,0.08801721,102260.0,102250.0,0.80592826]
[1738130386951,0.08801721,102260.0,102250.0,0.75768649]
[1738130387255,0.08801721,102260.0,102250.0,0.80592826]
[1738130387449,0.08801721,102260.0,102250.0,0.75768649]
[1738130389257,0.03304685,102270.0,102260.0,0.195647]
[1738130389456,0.03304685,102270.0,102260.0,0.60468877]
[1738130390550,0.03304685,102270.0,102260.0,0.64475436]
[1738130391357,0.03304685,102270.0,102260.0,0.87878935]
[1738130391858,0.03504685,102270.0,102260.0,0.87878935]
[1738130392760,0.03504685,102270.0,102260.0,0.92703112]
[1738130394248,0.03504685,102270.0,102260.0,0.95883112]
[1738130394450,0.03504685,102270.0,102260.0,0.99073112]
[1738130395161,0.00214685,102270.0,102260.0,0.99073112]
[1738130396867,0.00214685,102270.0,102260.0,1.06953112]
[1738130397155,0.00214685,102270.0,102260.0,1.07950508]
[1738130397756,0.00214685,102270.0,102260.0,1.37204881]
[1738130400159,0.30612864,102300.0,102290.0,0.19559]
[1738130400368,0.43804775,102320.0,102290.0,0.81808354]
[1738130400551,0.68130151,102320.0,102300.0,0.71441177]
[1738130400756,0.43752774,102320.0,102310.0,0.24379277]
[1738130400960,0.43752774,102320.0,102300.0,0.71440977]
[1738130400961,0.20417392,102310.0,102300.0,0.71440977]
[1738130401158,0.61321569,102310.0,102300.0,0.0304]
[1738130401366,0.90491864,102320.0,102290.0,0.00014685]
[1738130401367,0.31091167,102320.0,102290.0,0.00014685]
[1738130401662,0.01,102370.0,102290.0,0.00014685]
[1738130401663,0.576,102390.0,102320.0,0.3608]
[1738130401855,0.78006803,102380.0,102370.0,0.40904177]
[1738130402060,0.74153984,102380.0,102370.0,0.40904177]
[1738130402259,0.93695784,102380.0,102370.0,0.40904177]
[1738130403353,0.82008161,102380.0,102360.0,0.40918862]
[1738130403555,0.24367877,102370.0,102360.0,0.00014685]
[1738130403754,0.24367877,102370.0,102340.0,0.3608]
[1738130403755,0.45728354,102370.0,102340.0,0.3608]
[1738130403953,0.24371677,102350.0,102340.0,0.3608]
[1738130404371,0.07854177,102350.0,102330.0,0.40904177]
[1738130404665,0.195494,102340.0,102330.0,0.43416882]
[1738130405453,0.228394,102340.0,102330.0,0.43416882]
[1738130406058,0.10626882,102340.0,102320.0,0.44431567]
[1738130406365,0.195513,102330.0,102320.0,0.43431567]
[1738130406574,0.195513,102330.0,102320.0,0.69866012]
[1738130407065,0.227513,102330.0,102320.0,0.6252913]
[1738130407959,0.30088182,102330.0,102320.0,0.6252913]
[1738130408862,0.30188182,102330.0,102320.0,0.6252913]
[1738130409260,0.30488182,102330.0,102320.0,0.6252913]
[1738130410865,0.73905064,102330.0,102320.0,3e-07]
[1738130411462,0.195532,102320.0,102310.0,0.08544]
[1738130411670,0.195551,102310.0,102300.0,0.82931318]
[1738130411968,0.26891982,102310.0,102300.0,0.76741318]
[1738130412165,0.26891982,102310.0,102300.0,0.40661318]
[1738130412362,0.30171982,102310.0,102300.0,0.40661318]
[1738130412673,0.30171982,102310.0,102300.0,0.76741318]
[1738130412971,0.30171982,102310.0,102300.0,0.76941318]
[1738130413370,0.30171982,102310.0,102300.0,0.40861318]
[1738130413867,0.30171982,102310.0,102300.0,0.76941318]
[1738130414664,0.30171982,102310.0,102300.0,0.3628]
[1738130414973,0.30171982,102310.0,102300.0,0.3608]
[1738130415166,0.30671982,102310.0,102300.0,0.44736]
[1738130415972,0.30671982,102310.0,102300.0,0.08656]
[1738130416173,0.30671982,102310.0,102300.0,0.001]
[1738130416369,0.19557,102300.0,102290.0,0.36104657]
[1738130416560,0.37440764,102300.0,102290.0,0.00024657]
[1738130416867,0.37440764,102300.0,102290.0,0.36104657]
[1738130417067,0.37440764,102300.0,102290.0,0.00024657]
[1738130417465,0.30103882,102300.0,102290.0,0.00024657]
[1738130417666,0.37440764,102300.0,102290.0,0.00024657]
[1738130417866,0.73520764,102300.0,102290.0,0.00014685]
[1738130418065,0.37440764,102300.0,102290.0,0.00014685]
[1738130418764,0.38240764,102300.0,102290.0,0.00114685]
[1738130419265,0.30603882,102300.0,102290.0,0.00114685]
[1738130419771,0.30903882,102300.0,102290.0,0.00114685]
[1738130420575,0.30903882,102300.0,102290.0,0.36194685]
[1738130420767,0.20357,102300.0,102290.0,0.36194685]
[1738130421371,0.19557,102300.0,102290.0,0.36094685]
[1738130421571,0.20057,102300.0,102290.0,0.36194685]
[1738130421771,0.27393882,102300.0,102290.0,0.36194685]
[1738130423876,0.20057,102300.0,102290.0,0.36194685]
[1738130424069,0.20057,102300.0,102290.0,0.44958685]
[1738130424265,0.27393882,102300.0,102290.0,0.44958685]
[1738130426064,0.20057,102300.0,102290.0,0.44958685]
[1738130430573,0.27393882,102300.0,102290.0,0.44958685]
[1738130430776,0.27393882,102300.0,102290.0,0.08878685]
[1738130431281,0.27393882,102300.0,102290.0,0.44958685]
[1738130432582,0.20057,102300.0,102290.0,0.44958685]
[1738130436077,0.20057,102300.0,102290.0,0.68193724]
[1738130436479,0.20057,102300.0,102290.0,0.87752724]
[1738130438575,0.20057,102300.0,102290.0,0.88531481]
[1738130438775,0.20057,102300.0,102290.0,0.95868363]
[1738130439282,0.20057,102300.0,102290.0,0.88531481]
[1738130440691,0.20057,102300.0,102290.0,1.26484215]
[1738130441882,0.20057,102300.0,102290.0,1.06146458]
[1738130442085,0.20057,102300.0,102290.0,1.06070458]
[1738130444498,0.27393882,102300.0,102290.0,0.97382458]
[1738130444890,0.27393882,102300.0,102290.0,1.06098458]
[1738130445085,0.27393882,102300.0,102290.0,0.97382458]
[1738130445300,0.30553882,102300.0,102290.0,1.06102458]
[1738130445794,0.30553882,102300.0,102290.0,0.97382458]
[1738130447502,0.23217,102300.0,102290.0,0.97382458]
[1738130447892,0.23217,102300.0,102290.0,0.65238484]
[1738130448293,0.20057,102300.0,102290.0,0.65238484]
[1738130450306,0.00985658,102310.0,102290.0,0.93308523]
[1738130450499,0.14565267,102320.0,102300.0,0.69332782]
[1738130450500,0.34119367,102320.0,102300.0,0.69332782]
[1738130450798,0.34119367,102320.0,102310.0,0.3608]
[1738130451794,0.34919367,102320.0,102310.0,0.3608]
[1738130452192,0.34119367,102320.0,102310.0,0.3608]
[1738130452392,0.35019367,102320.0,102310.0,0.3618]
[1738130452806,0.34119367,102320.0,102310.0,0.3608]
[1738130453005,0.34919367,102320.0,102310.0,0.3618]
[1738130455214,0.20368785,102320.0,102310.0,0.88627678]
[1738130457107,0.00814685,102320.0,102310.0,0.9596456]
[1738130457412,0.00814685,102320.0,102310.0,1.1551966]
[1738130457607,0.00814685,102320.0,102310.0,1.20523087]
[1738130457802,0.00814685,102320.0,102310.0,1.13186205]
[1738130458009,0.31414299,102330.0,102310.0,1.07760648]
[1738130458213,0.31414299,102330.0,102320.0,0.675532]
[1738130458412,0.31414299,102330.0,102320.0,0.705732]